bitfinex/quotes_ETHUSD_20250216
["timestamp","ask_amount","ask_price","bid_price","bid_amount"]
[1739738068982,0.7949,2681.4,2681.1,3.72979]
[1739738069691,0.7949,2681.4,2681.0,4.102861]
[1739738070190,0.7949,2681.4,2681.1,3.72972]
[1739738072215,0.7949,2681.4,2681.0,4.102941]
[1739738072369,0.7949,2681.4,2681.0,3.72995]
[1739738073293,0.7949,2681.4,2680.8,3.73013]
[1739738073491,0.7949,2681.4,2680.9,3.72996]
[1739738074011,0.7949,2681.4,2681.0,3.72993]
[1739738074573,4.52434,2681.4,2680.9,3.72998]
[1739738076012,0.7949,2681.4,2681.0,3.72994]
[1739738077214,0.7949,2681.4,2680.9,3.73008]
[1739738078122,0.7949,2681.4,2681.0,3.72993]
[1739738079923,4.5243,2681.4,2681.0,3.72993]
[1739738080590,0.7949,2681.4,2681.1,3.72973]
[1739738080785,0.7949,2681.4,2681.0,4.475936]
[1739738081018,0.7949,2681.4,2681.0,3.72993]
[1739738081591,0.7949,2681.4,2681.0,3.72988]
[1739738081989,4.52431,2681.4,2681.0,3.72988]
[1739738082627,0.7949,2681.4,2681.0,3.72988]
[1739738082990,4.52431,2681.4,2681.0,3.72988]
[1739738083632,0.7949,2681.4,2681.0,3.72988]
[1739738083837,0.7949,2681.4,2681.0,3.72985]
[1739738083994,4.52431,2681.4,2681.0,3.72985]
[1739738084339,4.49883,2681.2,2680.7,3.73025]
[1739738084700,4.49883,2681.2,2680.7,7.46054]
[1739738085250,4.49883,2681.2,2680.7,3.73025]
[1739738085547,4.49883,2681.2,2680.8,3.73022]
[1739738085894,0.7691,2681.2,2680.6,8.98879387]
[1739738086135,0.7691,2680.9,2680.6,5.25834387]
[1739738086307,0.7691,2680.7,2680.2,3.73106]
[1739738086510,4.49954,2680.7,2680.2,3.73106]
[1739738086717,3.73051,2680.6,2680.2,3.73106]
[1739738087138,0.7691,2680.7,2680.1,3.7312]
[1739738087301,3.73053,2680.6,2680.0,5.25834387]
[1739738087634,0.7691,2680.5,2680.0,5.25834387]
[1739738087800,0.7691,2680.3,2679.9,3.73143]
[1739738091841,3.73107,2680.2,2679.7,3.73165]
[1739738094315,0.7691,2680.1,2679.5,4.28193]
[1739738094516,3.73173,2679.8,2679.5,0.55]
[1739738094858,4.54273,2679.7,2679.5,0.55]
[1739738095420,0.8109,2679.7,2679.5,0.55]
[1739738095620,4.54269,2679.7,2679.5,0.55]
[1739738097623,8.27453,2679.7,2679.5,0.55]
[1739738097824,4.54269,2679.7,2679.5,0.55]
[1739738098226,0.8109,2679.7,2679.5,0.55]
[1739738098725,3.7319,2679.6,2679.5,0.55]
[1739738099963,4.54279,2679.7,2679.5,0.55]
[1739738100136,4.997069,2679.7,2679.5,0.55]
[1739738100530,8.728939,2679.7,2679.5,0.55]
[1739738100737,4.997029,2679.7,2679.5,0.55]
[1739738100949,8.728879,2679.7,2679.5,0.55]
[1739738101273,3.7319,2679.6,2679.5,0.55]
[1739738101642,4.997029,2679.7,2679.5,0.55]
[1739738101839,1.265179,2679.7,2679.5,0.55]
[1739738102259,4.996959,2679.7,2679.5,0.55]
[1739738103354,3.7319,2679.6,2679.5,0.55]
[1739738104627,4.5428,2679.6,2679.5,0.55]
[1739738107069,5.4156859,2679.6,2679.5,0.55]
[1739738108168,8.4156859,2679.6,2679.5,0.55]
[1739738108530,8.6816859,2679.6,2679.5,0.55]
[1739738108766,8.6816859,2679.6,2679.5,1e-05]
[1739738108963,9.2316859,2679.6,2679.5,1e-05]
[1739738109464,12.45804257,2679.6,2679.5,1e-05]
[1739738109662,12.83134257,2679.6,2679.5,1e-05]
[1739738109969,12.45804257,2679.6,2679.5,1e-05]
[1739738110452,9.2316859,2679.6,2679.5,1e-05]
[1739738111939,8.4156859,2679.6,2679.5,1e-05]
[1739738112148,8.6816859,2679.6,2679.5,1e-05]
[1739738112341,8.4156859,2679.6,2679.5,1e-05]
[1739738112553,5.4156859,2679.6,2679.5,1e-05]
[1739738112755,0.8109,2679.6,2679.5,1e-05]
[1739738113059,3.73176,2679.7,2679.5,1e-05]
[1739738113230,3.7319,2679.6,2679.5,1e-05]
[1739738113435,0.8162,2679.8,2679.5,1e-05]
[1739738113754,6.99755,2679.9,2679.5,1e-05]
[1739738114476,3.266,2679.9,2679.5,3.73201]
[1739738114682,3.8162,2680.0,2679.5,3.73195]
[1739738114844,3.8162,2680.0,2679.5,1e-05]
[1739738115173,3.0,2679.7,2679.5,1e-05]
[1739738116501,7.5481,2679.6,2679.5,1e-05]
[1739738117156,7.8141,2679.6,2679.5,1e-05]
[1739738120095,7.73736266,2679.6,2679.5,1e-05]
[1739738120300,4.5481,2679.6,2679.5,1e-05]
[1739738120622,4.54792,2679.8,2679.5,1e-05]
[1739738121114,3.73179,2679.7,2679.5,1e-05]
[1739738121703,6.7319,2679.6,2679.5,1e-05]
[1739738122018,7.5481,2679.6,2679.5,1e-05]
[1739738130640,13.4381,2679.6,2679.5,1e-05]
[1739738132914,13.59175685,2679.6,2679.5,1e-05]
[1739738133114,14.36748272,2679.6,2679.5,1e-05]
[1739738135258,17.69383939,2679.6,2679.5,1e-05]
[1739738135454,3.73352,2678.5,2678.0,0.7877]
[1739738135660,3.73365,2678.4,2678.0,0.7877]
[1739738135955,3.88425486,2678.4,2678.0,0.7877]
[1739738136955,0.15060486,2678.4,2678.0,4.5218]
[1739738137257,0.15060486,2678.4,2678.2,0.7877]
[1739738137424,0.15060486,2678.4,2678.2,4.52153]
[1739738137929,0.15060486,2678.4,2678.2,0.7877]
[1739738138263,3.73337,2678.6,2678.2,0.7877]
[1739738138556,0.15034819,2678.3,2678.2,0.7877]
[1739738138858,0.15034819,2678.3,2678.2,4.52155]
[1739738139060,3.73318,2678.7,2678.2,4.52155]
[1739738139353,0.15034819,2678.3,2678.2,4.52155]
[1739738139563,0.15043134,2678.3,2678.2,4.52155]
[1739738139975,3.0,2678.6,2678.2,4.52155]
[1739738140267,3.0,2678.6,2678.2,0.7877]
[1739738140568,0.15034516,2678.5,2678.2,0.7877]
[1739738140764,0.15034516,2678.5,2678.2,4.52145]
[1739738141172,3.0,2678.7,2678.2,4.52145]
[1739738141571,0.15036115,2678.6,2678.2,4.52145]
[1739738142151,0.15036115,2678.6,2678.2,0.7877]
[1739738142647,0.15036115,2678.6,2678.5,4.52273]
[1739738143091,3.73278,2679.0,2678.5,4.52273]
[1739738143240,0.14498573,2678.6,2678.5,4.52273]
[1739738143586,3.0,2678.9,2678.5,4.52273]
[1739738143756,0.14498573,2678.6,2678.5,0.7893]
[1739738143946,3.267,2679.1,2678.5,0.7893]
[1739738144451,0.14513282,2679.0,2678.5,0.7893]
[1739738144850,0.14513282,2679.0,2678.8,3.73298]
[1739738145060,0.14513282,2679.0,2678.9,0.7893]
[1739738145266,3.0,2679.2,2678.9,0.7893]
[1739738145451,0.145216,2679.0,2678.9,0.7893]
[1739738145654,3.0,2679.2,2678.9,0.7893]
[1739738145838,0.145216,2679.0,2678.9,0.7893]
[1739738146041,3.0,2679.2,2678.9,0.7893]
[1739738146273,0.14527725,2679.0,2678.9,0.7893]
[1739738146458,3.0,2679.2,2678.9,0.7893]
[1739738146770,0.14527725,2679.0,2678.9,0.7893]
[1739738146976,3.0,2679.2,2678.9,0.7893]
[1739738147174,0.14527725,2679.0,2678.9,0.7893]
[1739738147677,3.0,2679.2,2678.9,0.7893]
[1739738147971,0.14527725,2679.0,2678.9,0.7893]
[1739738148173,3.0,2679.5,2678.9,0.7893]
[1739738148354,0.14527725,2679.0,2678.9,0.7893]
[1739738149572,0.46670692,2679.4,2678.9,0.7893]
[1739738149884,3.87773709,2679.3,2678.9,0.7893]
[1739738151408,3.73253,2679.2,2678.9,0.7893]
[1739738151576,0.14531513,2679.1,2678.9,0.7893]
[1739738151900,0.809,2679.0,2678.4,0.8277]
[1739738152077,3.73331,2678.6,2678.4,0.8277]
[1739738152277,3.73323,2678.7,2678.4,0.8277]
[1739738152478,0.14524547,2678.5,2678.4,0.8277]
[1739738152879,3.73323,2678.7,2678.4,0.8277]
[1739738153097,0.14524547,2678.5,2678.4,0.8277]
[1739738153301,3.73323,2678.7,2678.4,0.8277]
[1739738153475,0.14524547,2678.5,2678.4,0.8277]
[1739738153676,3.73323,2678.7,2678.4,0.8277]
[1739738154176,3.73322,2678.7,2678.4,0.8277]
[1739738154380,0.14526146,2678.6,2678.4,0.8277]
[1739738156089,0.14526146,2678.6,2678.0,0.7994]
[1739738156292,0.14526146,2678.6,2678.1,3.73391]
[1739738156496,3.87855146,2678.6,2678.1,3.73391]
[1739738156708,7.61193146,2678.6,2678.1,3.73391]
[1739738156902,0.83585495,2678.5,2678.1,3.73391]
[1739738157118,0.98092021,2678.5,2678.1,3.73391]
[1739738157479,4.71436021,2678.5,2678.1,3.73391]
[1739738157888,0.98092021,2678.5,2678.1,3.73391]
[1739738158088,0.14506526,2678.5,2678.1,3.73391]
[1739738158579,0.14504927,2678.4,2678.1,3.73391]
[1739738158987,0.14504927,2678.4,2678.1,3.73389]
[1739738159201,0.7651,2678.6,2678.0,0.7994]
[1739738159601,3.87857526,2678.5,2678.0,4.53342]
[1739738159794,5.09092959,2678.5,2678.0,4.53342]
[1739738160192,3.73358,2678.4,2678.0,4.53342]
[1739738160387,0.14503328,2678.3,2678.0,4.53342]
[1739738160791,1.21235433,2678.5,2678.0,0.7994]
[1739738161121,3.73371,2678.3,2678.0,0.7994]
[1739738161503,0.14501729,2678.2,2678.0,0.7994]
[1739738161822,3.73357,2678.4,2678.0,0.7994]
[1739738162118,3.87881328,2678.3,2678.0,0.7994]
[1739738162324,3.73388,2678.2,2678.0,0.7994]
[1739738162730,0.1450013,2678.1,2678.0,0.7994]
[1739738163933,0.1450013,2678.1,2677.8,0.7994]
[1739738164345,3.8790813,2678.1,2677.8,0.7994]
[1739738165390,3.73414,2678.0,2677.8,0.7994]
[1739738165549,0.98280743,2678.1,2677.8,0.7494]
[1739738165956,0.83780613,2678.1,2677.8,0.7494]
[1739738166253,0.14455636,2678.0,2677.8,0.7494]
[1739738166772,3.87872636,2678.0,2677.8,0.7494]
[1739738166963,4.72378461,2678.0,2677.8,0.7494]
[1739738167351,0.98961461,2678.0,2677.8,0.7494]
[1739738167549,0.14455636,2678.0,2677.8,0.7494]
[1739738168432,3.87868636,2678.0,2677.8,0.7494]
[1739738168637,0.14455636,2678.0,2677.8,0.7494]
[1739738169981,3.87871636,2678.0,2677.8,0.7494]
[1739738170876,3.87871636,2678.0,2677.6,0.8098]
[1739738171043,4.639983,2678.0,2677.6,0.8098]
[1739738171242,3.8299,2677.9,2677.2,0.95750823]
[1739738171442,3.73475,2677.6,2677.2,0.95750823]
[1739738171660,3.8791728,2677.5,2677.2,0.95750823]
[1739738172346,0.1443228,2677.5,2677.2,0.95750823]
[1739738172880,0.14414021,2677.4,2677.2,0.95750823]
[1739738173375,3.73483,2677.5,2677.2,0.95750823]
[1739738173880,0.14414021,2677.4,2677.2,0.95750823]
[1739738174301,3.7351,2677.3,2677.2,0.14770823]
[1739738174458,7.565,2677.3,2677.2,0.14770823]
[1739738174662,7.9769315,2677.3,2677.2,0.14770823]
[1739738176450,7.56514,2677.2,2677.1,0.555]
[1739738176765,7.70360165,2677.2,2677.1,0.555]
[1739738176957,9.29717364,2677.2,2677.1,0.555]
[1739738177173,9.84717364,2677.2,2677.1,1e-05]
[1739738178150,3.73664,2676.2,2675.8,0.8098]
[1739738178596,3.8744032,2676.2,2675.8,0.8098]
[1739738179366,6.8744032,2676.2,2675.5,0.8098]
[1739738179561,8.01848352,2676.2,2675.5,0.8098]
[1739738179770,8.01848352,2676.2,2675.5,4.54732]
[1739738179978,8.01848352,2676.2,2675.5,8.28485]
[1739738180187,8.01848352,2676.2,2675.6,3.73744]
[1739738180362,0.1377632,2676.2,2676.1,4.28678]
[1739738180694,3.73574,2676.9,2676.3,3.73648]
[1739738180858,4.56531,2677.1,2676.3,3.73642]
[1739738181053,2.35055869,2677.2,2676.5,0.8098]
[1739738181258,1.21779702,2677.4,2676.8,3.73571]
[1739738181457,0.38789702,2677.4,2676.9,0.8098]
[1739738181683,0.38789702,2677.4,2677.0,3.7355]
[1739738181877,0.38789702,2677.4,2676.9,0.8098]
[1739738181878,4.00583,2677.5,2676.9,4.54544]
[1739738182659,3.73497,2677.4,2676.9,0.8098]
[1739738182858,4.00583,2677.5,2676.9,0.8098]
[1739738183163,3.73505,2677.4,2676.9,0.8098]
[1739738183364,3.73505,2677.4,2676.8,3.73568]
[1739738183365,3.73542,2677.1,2676.6,0.8098]
[1739738183588,4.482477,2677.1,2676.6,0.8098]
[1739738184884,7.47155,2676.9,2676.2,4.53466]
[1739738185075,3.73576,2676.9,2676.2,8.2712]
[1739738185398,3.73576,2676.9,2676.4,3.73632]
[1739738185594,3.73546,2677.1,2676.4,3.73632]
[1739738185798,0.756536,2677.0,2676.7,0.7981]
[1739738185996,3.73518,2677.3,2676.8,3.73578]
[1739738186912,4.56229,2677.5,2676.8,3.73572]
[1739738187064,3.73489,2677.5,2676.9,3.73565]
[1739738188601,3.73497,2677.4,2676.9,3.73565]
[1739738189103,3.73489,2677.5,2676.9,3.73565]
[1739738189296,3.73511,2677.3,2676.8,3.73569]
[1739738190586,4.96524855,2677.5,2676.8,3.73569]
[1739738190790,3.73504,2677.4,2676.8,7.47141]
[1739738190991,3.73504,2677.4,2676.8,3.73569]
[1739738191625,3.73483,2677.5,2676.9,3.73556]
[1739738191901,3.73483,2677.5,2677.0,0.7981]
[1739738192106,3.73483,2677.5,2677.0,4.5336]
[1739738192406,0.12363472,2677.4,2677.0,4.5336]
[1739738193178,3.85862472,2677.4,2677.0,0.7981]
[1739738193369,3.85862472,2677.4,2677.0,0.7481]
[1739738194916,4.61796019,2677.4,2677.0,0.7481]
[1739738195085,0.88297019,2677.4,2677.0,0.7481]
[1739738195292,0.88297019,2677.4,2677.0,4.48361]
[1739738195475,0.12363472,2677.4,2677.0,0.7481]
[1739738195794,3.7345,2677.8,2677.2,3.73512]
[1739738195981,0.11944431,2677.3,2677.2,3.73512]
[1739738196195,0.8274,2677.9,2677.0,3.73552]
[1739738196394,7.56167,2677.9,2677.4,3.73486]
[1739738196594,1.24911232,2677.8,2677.4,3.73486]
[1739738197318,3.73461,2677.7,2677.2,3.73516]
[1739738197521,1.24911232,2677.8,2677.3,3.73507]
[1739738197710,0.11949232,2677.6,2677.4,3.73492]
[1739738197880,4.56176,2677.9,2677.5,3.73475]
[1739738197881,0.11950832,2677.7,2677.5,3.73475]
[1739738198080,0.8274,2677.9,2677.5,3.73475]
[1739738198399,5.79374758,2677.9,2677.4,3.73496]
[1739738198997,3.73399,2678.1,2677.6,4.53275]
[1739738199177,7.46809,2678.1,2677.6,4.53275]
[1739738199908,3.73399,2678.1,2677.6,4.53275]
[1739738200108,0.8274,2678.2,2677.7,3.73454]
[1739738200313,3.7338,2678.3,2677.7,3.73454]
[1739738200500,4.590641,2678.3,2677.8,3.73432]
[1739738201076,7.590641,2678.3,2677.8,3.73432]
[1739738201508,7.590641,2678.3,2677.3,3.73506]
[1739738201509,3.73351,2678.5,2678.0,0.8218]
[1739738201685,3.73351,2678.5,2678.0,4.55585]
[1739738202201,4.56333,2678.7,2678.1,3.73398]
[1739738202397,3.73336,2678.6,2678.0,4.55585]
[1739738202912,3.73323,2678.7,2678.1,3.73392]
[1739738203206,3.73329,2678.6,2678.2,3.73382]
[1739738203509,4.479898,2678.7,2678.0,4.5558]
[1739738203716,4.479898,2678.7,2678.1,3.73397]
[1739738204883,3.73331,2678.6,2678.1,3.73397]
[1739738207316,0.11778677,2678.5,2678.1,3.73397]
[1739738207483,3.85128677,2678.5,2678.0,4.55591]
[1739738207681,3.85128677,2678.5,2678.0,4.55582]
[1739738208433,0.11778677,2678.5,2678.1,3.73397]
[1739738211114,0.11778677,2678.5,2678.2,3.73383]
[1739738211427,0.11778677,2678.5,2678.3,4.5555]
[1739738211759,0.11786382,2678.4,2678.3,4.5555]
[1739738211936,0.11786382,2678.4,2678.3,0.8218]
[1739738212233,0.746618,2678.7,2678.3,4.55537]
[1739738212406,0.11786382,2678.4,2678.3,4.55537]
[1739738212747,0.11810306,2678.4,2678.3,0.8218]
[1739738212900,0.8301,2678.9,2678.3,4.55544]
[1739738213099,0.756292,2678.8,2678.5,3.73338]
[1739738213415,0.756292,2678.8,2678.5,3.73331]
[1739738213727,3.73274,2679.0,2678.6,3.73327]
[1739738214600,7.5627,2679.1,2678.6,3.73327]
[1739738215248,3.73275,2679.0,2678.5,3.73335]
[1739738215732,3.73275,2679.0,2678.4,3.73355]
[1739738215898,3.8301,2679.1,2678.6,3.73328]
[1739738216100,0.756266,2679.0,2678.6,3.73328]
[1739738216635,4.489006,2679.0,2678.6,3.73328]
[1739738217024,0.756266,2679.0,2678.6,3.73328]
[1739738217214,4.489066,2679.0,2678.5,3.73342]
[1739738220244,3.73289,2678.9,2678.5,3.73341]
[1739738220408,0.4489156,2678.8,2678.5,3.73341]
[1739738220945,0.756266,2679.0,2678.5,3.73339]
[1739738221547,0.756266,2679.0,2678.6,3.73328]
[1739738222425,0.11413547,2678.9,2678.6,3.73328]
[1739738223947,0.11413547,2678.9,2678.7,3.73309]
[1739738224112,0.11413547,2678.9,2678.6,3.73328]
[1739738224313,0.95744562,2678.9,2678.6,3.73328]
[1739738226752,0.95744562,2678.9,2678.6,3.73319]
[1739738228750,0.95744562,2678.9,2678.6,3.73329]
[1739738229953,0.95744562,2678.9,2678.3,4.55547]
[1739738230156,0.7684,2678.6,2678.1,3.73388]
[1739738230321,0.7684,2678.6,2678.2,3.73375]
[1739738230651,0.11395772,2678.5,2678.2,3.73375]
[1739738231356,0.11395772,2678.5,2678.3,3.73364]
[1739738232449,0.11395772,2678.5,2678.4,4.53057]
[1739738232854,0.7684,2678.9,2678.5,3.7333]
[1739738233151,5.251378,2678.9,2678.4,4.53056]
[1739738233322,5.251378,2678.9,2678.5,3.73342]
[1739738233523,1.518508,2678.9,2678.5,3.73342]
[1739738234253,1.518508,2678.9,2678.6,3.73316]
[1739738234618,3.0,2679.1,2678.4,0.797]
[1739738234822,1.3184,2679.3,2679.0,3.73272]
[1739738235140,0.55,2679.3,2679.0,3.73265]
[1739738235328,3.73267,2679.1,2678.6,0.797]
[1739738235660,0.7684,2679.0,2678.5,3.73336]
[1739738235836,0.7684,2679.0,2678.5,3.73333]
[1739738236217,1.591766,2679.0,2678.5,3.73343]
[1739738236423,5.324536,2679.0,2678.5,3.73343]
[1739738236631,9.057356,2679.0,2678.4,4.53049]
[1739738236831,3.77963434,2678.9,2678.3,3.73361]
[1739738237127,3.73306,2678.8,2678.3,3.7336]
[1739738237455,4.50158,2678.7,2678.2,3.73384]
[1739738237822,0.10369429,2678.6,2678.1,3.73391]
[1739738238256,0.10369429,2678.6,2678.2,3.73384]
[1739738239030,0.10369429,2678.6,2677.9,3.73417]
[1739738239233,0.10369429,2678.6,2678.1,3.73398]
[1739738239825,0.10369429,2678.6,2678.1,7.46789]
[1739738240056,0.10369429,2678.6,2678.1,3.73391]
[1739738240567,0.10369429,2678.6,2678.2,0.797]
[1739738241939,0.10369429,2678.6,2678.2,4.53084]
[1739738242159,0.10369429,2678.6,2678.4,3.73351]
[1739738242361,0.10369429,2678.6,2678.4,3.73357]
[1739738242660,0.7684,2678.7,2678.2,0.797]
[1739738242861,0.09963664,2678.5,2678.2,4.53083]
[1739738243064,0.09965262,2678.6,2678.2,4.53083]
[1739738243225,0.09962065,2678.4,2678.2,4.53083]
[1739738243426,4.50163,2678.7,2678.2,4.53083]
[1739738243626,0.09960467,2678.3,2678.2,4.53083]
[1739738243925,0.09962689,2678.3,2678.2,4.53085]
[1739738244126,0.7684,2678.7,2678.2,0.797]
[1739738244431,0.7684,2678.7,2678.3,3.73369]
[1739738245138,0.7684,2678.7,2678.3,3.73362]
[1739738246477,0.7684,2678.7,2678.3,7.46719]
[1739738246766,4.54057,2678.9,2678.4,3.73355]
[1739738246927,5.367907,2678.9,2678.4,3.73355]
[1739738247640,7.54024,2679.2,2678.6,0.8176]
[1739738247844,0.8077,2679.2,2678.7,3.73315]
[1739738248172,4.58682923,2679.2,2678.7,3.73315]
[1739738248665,4.54017,2679.2,2678.7,3.73315]
[1739738249043,4.54017,2679.2,2678.6,4.5508]
[1739738249044,8.27272,2679.2,2678.6,4.5508]
[1739738249370,4.54017,2679.2,2678.6,4.5508]
[1739738249546,3.7326,2679.1,2678.6,8.28402]
[1739738249746,4.54017,2679.2,2678.6,8.28402]
[1739738250050,3.73262,2679.1,2678.6,4.5508]
[1739738250258,5.477414,2679.2,2678.6,8.28398]
[1739738250570,9.209964,2679.2,2678.6,8.28398]
[1739738250734,9.209964,2679.2,2678.6,4.55078]
[1739738251280,3.73268,2679.1,2678.6,4.55078]
[1739738251761,0.7958,2678.8,2678.4,4.52348]
[1739738252481,0.09980193,2678.7,2678.4,4.52348]
[1739738252853,0.7958,2678.8,2678.4,4.52348]
[1739738253053,0.09978594,2678.6,2678.2,3.73381]
[1739738253278,3.73321,2678.7,2678.2,3.73381]
[1739738253494,0.09976996,2678.5,2678.3,3.7337]
[1739738253699,0.09980816,2678.6,2678.3,3.7337]
[1739738253849,4.52882,2678.8,2678.3,3.7337]
[1739738254049,1.8268094,2679.1,2678.7,3.73306]
[1739738254279,3.73246,2679.2,2678.6,3.73324]
[1739738254459,1.8958,2679.3,2678.8,3.73301]
[1739738254664,5.62819,2679.3,2678.8,3.73301]
[1739738254969,1.1,2679.3,2678.9,0.79]
[1739738255173,1.1,2679.3,2679.2,3.73245]
[1739738255886,1.1,2679.3,2679.1,3.73257]
[1739738256660,1.1,2679.3,2679.2,3.73245]
[1739738256905,1.1,2679.3,2679.1,3.73257]
[1739738258370,1.1,2679.3,2679.0,3.73266]
[1739738259398,1.1,2679.3,2679.1,3.73253]
[1739738259605,1.1,2679.3,2679.2,3.73245]
[1739738261400,1.1,2679.3,2679.2,4.50575]
[1739738262079,0.55,2679.3,2679.2,4.50575]
[1739738262708,0.55,2679.3,2679.2,0.7733]
[1739738263196,0.55,2679.3,2679.1,3.73258]
[1739738263197,0.64695459,2679.3,2679.1,3.73258]
[1739738264167,0.64695459,2679.3,2679.1,4.6389986]
[1739738264905,0.64695459,2679.3,2679.0,3.7327]
[1739738265204,0.64695459,2679.3,2678.9,8.23881]
[1739738266001,0.64695459,2679.3,2678.9,4.50603]
[1739738266167,0.64695459,2679.3,2679.0,3.73272]
[1739738266571,0.64695459,2679.3,2678.9,4.50603]
[1739738266797,4.37933459,2679.3,2678.8,3.73298]
[1739738267106,5.26747005,2679.3,2678.8,3.73298]
[1739738268275,4.37933459,2679.3,2678.7,4.50635]
[1739738268478,0.64695459,2679.3,2679.0,3.73273]
[1739738269640,0.64695459,2679.3,2679.1,3.73255]
[1739738270204,0.64695459,2679.3,2679.0,3.73273]
[1739738272291,0.64695459,2679.3,2678.8,3.73291]
[1739738272507,0.64695459,2679.3,2678.9,3.73279]
[1739738276713,0.64695459,2679.3,2678.8,3.73291]
[1739738276914,0.64695459,2679.3,2679.0,3.73272]
[1739738278109,0.64695459,2679.3,2678.8,3.73291]
[1739738278417,0.64695459,2679.3,2678.9,3.73286]
[1739738278717,0.64695459,2679.3,2678.9,3.73287]
[1739738279285,0.64695459,2679.3,2679.0,3.73263]
[1739738280217,0.64695459,2679.3,2678.9,3.73287]
[1739738281716,0.64695459,2679.3,2678.9,3.7328]
[1739738282422,0.64695459,2679.3,2679.0,3.73267]
[1739738285394,0.64695459,2679.3,2679.0,3.73266]
[1739738286246,0.64695459,2679.3,2678.9,3.73286]
[1739738287735,0.64695459,2679.3,2679.0,3.73273]
[1739738289740,0.64695459,2679.3,2678.8,3.73293]
[1739738289895,0.64695459,2679.3,2678.9,3.73279]
[1739738290634,0.64695459,2679.3,2678.8,3.73293]
[1739738291144,0.64695459,2679.3,2678.9,3.73286]
[1739738294939,0.64695459,2679.3,2678.8,3.73293]
[1739738295146,0.64695459,2679.3,2678.9,3.73287]
[1739738295326,0.64695459,2679.3,2679.0,3.7327]
[1739738297750,0.64695459,2679.3,2679.1,3.73259]
[1739738298203,0.64695459,2679.3,2678.8,3.7329]
[1739738298548,0.64695459,2679.3,2679.0,3.73272]
[1739738299336,0.64695459,2679.3,2678.8,4.18352]
[1739738299337,4.37938459,2679.3,2678.8,3.7329]
[1739738299528,0.7696,2679.0,2678.4,3.73347]
[1739738299725,4.50234,2679.0,2678.5,3.73336]
[1739738299927,0.08296118,2678.9,2678.5,3.73336]
[1739738300639,0.7696,2678.8,2678.2,3.73374]
[1739738300808,0.7696,2678.8,2678.4,3.73353]
[1739738301008,0.08282764,2678.7,2678.4,3.73353]
[1739738301401,0.7696,2678.8,2678.4,3.73353]
[1739738301605,0.03281165,2678.6,2678.3,7.46719]
[1739738301799,4.50262,2678.8,2678.5,3.73343]
[1739738301800,0.7696,2678.8,2678.5,3.73343]
[1739738302005,0.7696,2678.8,2678.5,7.46686]
[1739738302229,0.7696,2678.8,2678.5,3.73343]
[1739738302430,0.7696,2678.8,2678.5,3.73335]
[1739738302737,0.7696,2678.8,2678.6,3.73326]
[1739738303851,0.7696,2678.8,2678.7,3.73315]
[1739738304142,0.7696,2679.1,2678.8,3.73301]
[1739738304653,0.7696,2679.1,2678.5,0.8258]
[1739738304817,1.3196,2679.3,2678.9,3.7328]
[1739738305146,1.3196,2679.3,2679.0,3.7327]
[1739738305945,1.3196,2679.3,2678.9,4.4968]
[1739738306120,1.3196,2679.3,2678.9,3.73278]
[1739738306823,1.3196,2679.3,2679.0,3.73272]
[1739738308448,1.3196,2679.3,2678.9,3.73278]
[1739738308812,1.3196,2679.3,2679.0,3.73273]
[1739738309146,0.07805197,2679.2,2679.0,3.73273]
[1739738309312,0.7696,2679.3,2679.0,3.73273]
[1739738309512,0.07804417,2679.2,2679.0,3.73273]
[1739738309713,0.7696,2679.3,2679.0,3.73273]
[1739738309914,0.07804314,2679.2,2678.7,0.764]
[1739738310251,0.7505,2679.1,2678.8,3.7329]
[1739738310646,0.07802443,2679.0,2678.8,3.7329]
[1739738310829,0.07802443,2679.0,2678.8,4.479492]
[1739738311231,0.07802443,2679.0,2678.9,3.73287]
[1739738311434,0.07802443,2679.0,2678.8,0.746592]
[1739738311948,3.81075443,2679.0,2678.5,3.73335]
[1739738313552,3.81075443,2679.0,2678.6,3.73322]
[1739738313553,0.07802443,2679.0,2678.6,3.73322]
[1739738313742,0.07802443,2679.0,2678.7,3.73312]
[1739738314127,0.07802443,2679.0,2678.4,3.73346]
[1739738314534,0.07802443,2679.0,2678.6,3.73329]
[1739738315336,0.07802443,2679.0,2678.7,3.73312]
[1739738315643,0.07802443,2679.0,2678.8,3.73296]
[1739738315946,0.07802443,2679.0,2678.7,3.73312]
[1739738316152,0.07802443,2679.0,2678.8,3.733]
[1739738317927,0.07802443,2679.0,2678.9,3.73287]
[1739738318139,0.07802443,2679.0,2678.9,4.479458]
[1739738318339,0.7505,2679.3,2678.9,4.479458]
[1739738318661,0.7505,2679.3,2679.0,3.73268]
[1739738318845,0.07811434,2679.2,2679.0,3.73268]
[1739738319153,0.7505,2679.3,2678.9,4.479458]
[1739738319339,0.07809836,2679.1,2678.9,4.479398]
[1739738319546,0.7505,2679.3,2678.9,3.73275]
[1739738319855,0.7505,2679.3,2679.0,3.73266]
[1739738320244,0.7505,2679.3,2678.9,3.73281]
[1739738320847,0.7505,2679.3,2679.0,3.73268]
[1739738321558,0.8113,2679.6,2679.2,3.73245]
[1739738322949,4.54321,2679.6,2679.2,3.73245]
[1739738323128,4.54321,2679.6,2679.1,3.73259]
[1739738323323,4.58986198,2679.6,2679.1,3.73259]
[1739738323523,4.54321,2679.6,2679.1,3.73259]
[1739738323724,4.54321,2679.6,2679.1,4.557006]
[1739738325161,0.8113,2679.6,2679.2,3.73238]
[1739738326459,4.54329,2679.6,2679.1,4.557006]
[1739738327257,0.07560772,2679.5,2679.1,4.557006]
[1739738328647,0.07560772,2679.5,2679.1,4.5943276]
[1739738328853,0.07560772,2679.5,2679.2,4.26969276]
[1739738329066,0.07560772,2679.5,2679.2,0.53732276]
[1739738329379,0.07560772,2679.5,2679.1,3.73259]